[Event "*** Titled Tuesday Blitz"]
[Site "Chess.com"]
[Date "2018.11.06"]
[Round "1"]
[White "PawnEatingZombie"]
[Black "pulvettd"]
[Result "0-1"]
[WhiteElo "2112"]
[BlackElo "2515"]
[TimeControl "180+2"]
[EndTime "13:08:10 PST"]
[Termination "pulvettd won on time"]

1. d4 {[%clk 0:02:59.8]} 1... Nf6 {[%clk 0:02:59.5]} 2. c4 {[%clk 0:02:59.5]}
2... g6 {[%clk 0:02:58.6]} 3. Nc3 {[%clk 0:03:00.2]} 3... Bg7 {[%clk 0:02:59.3]}
4. e4 {[%clk 0:03:01.1]} 4... d6 {[%clk 0:03:00.4]} 5. Nf3 {[%clk 0:02:59.6]}
5... O-O {[%clk 0:02:56.9]} 6. Be2 {[%clk 0:03:00.5]} 6... Bg4 {[%clk
0:02:51.5]} 7. Be3 {[%clk 0:03:00.3]} 7... Nfd7 {[%clk 0:02:49]} 8. Rc1 {[%clk
0:02:58.8]} 8... c5 {[%clk 0:02:46.4]} 9. d5 {[%clk 0:02:57.2]} 9... Na6 {[%clk
0:02:42.6]} 10. O-O {[%clk 0:02:51.6]} 10... Nc7 {[%clk 0:02:40.4]} 11. Nd2
{[%clk 0:02:41.9]} 11... Bxe2 {[%clk 0:02:33.5]} 12. Qxe2 {[%clk 0:02:43.8]}
12... a6 {[%clk 0:02:33.5]} 13. a4 {[%clk 0:02:43.3]} 13... Rb8 {[%clk
0:02:30.4]} 14. Kh1 {[%clk 0:02:30.5]} 14... e6 {[%clk 0:02:26.1]} 15. f4 {[%clk
0:01:56.8]} 15... exd5 {[%clk 0:02:27.6]} 16. exd5 {[%clk 0:01:57.2]} 16... Re8
{[%clk 0:02:23.1]} 17. Qd3 {[%clk 0:01:58.1]} 17... f5 {[%clk 0:02:18.6]} 18.
Rce1 {[%clk 0:01:49]} 18... Nf6 {[%clk 0:02:17.2]} 19. Nf3 {[%clk 0:01:40.8]}
19... Ne4 {[%clk 0:02:11.2]} 20. Bd2 {[%clk 0:01:39.8]} 20... Nxd2 {[%clk
0:02:03.4]} 21. Qxd2 {[%clk 0:01:34.8]} 21... h6 {[%clk 0:02:01.1]} 22. Rxe8+
{[%clk 0:01:28.9]} 22... Qxe8 {[%clk 0:02:03]} 23. Re1 {[%clk 0:01:29.4]} 23...
Qd7 {[%clk 0:01:54.7]} 24. Re3 {[%clk 0:00:59.5]} 24... Re8 {[%clk 0:01:51.4]}
25. Qe1 {[%clk 0:00:57.6]} 25... Kf7 {[%clk 0:01:48.4]} 26. b3 {[%clk
0:00:53.7]} 26... Rxe3 {[%clk 0:01:33]} 27. Qxe3 {[%clk 0:00:53.4]} 27... Qe7
{[%clk 0:01:32.7]} 28. Qxe7+ {[%clk 0:00:53]} 28... Kxe7 {[%clk 0:01:34.6]} 29.
Ne2 {[%clk 0:00:51.8]} 29... b5 {[%clk 0:01:33.8]} 30. Kg1 {[%clk 0:00:46.5]}
30... bxa4 {[%clk 0:01:28.5]} 31. bxa4 {[%clk 0:00:47]} 31... a5 {[%clk
0:01:30.4]} 32. Kf2 {[%clk 0:00:46.7]} 32... Na8 {[%clk 0:01:28]} 33. Nc1 {[%clk
0:00:21.6]} 33... Nb6 {[%clk 0:01:29.9]} 34. Nb3 {[%clk 0:00:17.3]} 34... Nxc4
{[%clk 0:01:23.6]} 35. Ke2 {[%clk 0:00:17.1]} 35... Nb2 {[%clk 0:01:18.3]} 36.
Nxa5 {[%clk 0:00:16.3]} 36... Nxa4 {[%clk 0:01:18.9]} 37. Nc4 {[%clk 0:00:13.9]}
37... Nc3+ {[%clk 0:01:14.8]} 38. Kd2 {[%clk 0:00:11.2]} 38... Nxd5 {[%clk
0:01:16.7]} 39. Nh4 {[%clk 0:00:11.9]} 39... Nxf4 {[%clk 0:01:07.8]} 40. g3
{[%clk 0:00:12.3]} 40... Bf6 {[%clk 0:01:07]} 41. Nf3 {[%clk 0:00:03.7]} 41...
Ne6 {[%clk 0:01:06.4]} 42. Nb6 {[%clk 0:00:03.6]} 42... Nc7 {[%clk 0:01:02.1]}
43. Nc8+ {[%clk 0:00:02.9]} 43... Ke6 {[%clk 0:01:00.8]} 0-1

[Event "*** Titled Tuesday Blitz"]
[Site "Chess.com"]
[Date "2018.11.06"]
[Round "1"]
[White "Mr_Penings"]
[Black "BjarkeSahl"]
[Result "1-0"]
[WhiteElo "2527"]
[BlackElo "2159"]
[TimeControl "180+2"]
[EndTime "13:08:11 PST"]
[Termination "Mr_Penings won by resignation"]

1. c4 {[%clk 0:02:56.5]} 1... f5 {[%clk 0:02:57.6]} 2. g3 {[%clk 0:02:56.8]}
2... Nf6 {[%clk 0:02:58.6]} 3. Bg2 {[%clk 0:02:57.9]} 3... g6 {[%clk 0:03:00.3]}
4. Nc3 {[%clk 0:02:58.7]} 4... Bg7 {[%clk 0:03:01.9]} 5. d3 {[%clk 0:02:59.6]}
5... O-O {[%clk 0:03:03.3]} 6. e4 {[%clk 0:03:00.7]} 6... d6 {[%clk 0:03:03.4]}
7. Nge2 {[%clk 0:03:01.3]} 7... c6 {[%clk 0:03:03.7]} 8. O-O {[%clk 0:03:02.2]}
8... a5 {[%clk 0:03:02.5]} 9. h3 {[%clk 0:02:56.9]} 9... Na6 {[%clk 0:03:02.8]}
10. Be3 {[%clk 0:02:57.2]} 10... fxe4 {[%clk 0:02:30.6]} 11. dxe4 {[%clk
0:02:54.1]} 11... Be6 {[%clk 0:02:18.5]} 12. b3 {[%clk 0:02:43.8]} 12... Qc8
{[%clk 0:02:18.6]} 13. Kh2 {[%clk 0:02:42.7]} 13... Bf7 {[%clk 0:01:56.5]} 14.
f4 {[%clk 0:02:36.9]} 14... Nc7 {[%clk 0:01:50.4]} 15. Qd2 {[%clk 0:02:22]}
15... Ne6 {[%clk 0:01:47]} 16. Rae1 {[%clk 0:02:08.2]} 16... Nd7 {[%clk
0:01:42.6]} 17. f5 {[%clk 0:02:05.4]} 17... Nec5 {[%clk 0:01:35.6]} 18. Bh6
{[%clk 0:01:43.8]} 18... Ne5 {[%clk 0:01:35]} 19. Bxg7 {[%clk 0:01:35.1]} 19...
Kxg7 {[%clk 0:01:35.9]} 20. f6+ {[%clk 0:01:26]} 20... exf6 {[%clk 0:01:32.2]}
21. Qxd6 {[%clk 0:01:26.1]} 21... Ne6 {[%clk 0:01:30.7]} 22. Nd5 {[%clk
0:00:46.3]} 22... cxd5 {[%clk 0:01:24]} 23. exd5 {[%clk 0:00:48.2]} 23... Qd8
{[%clk 0:01:25.2]} 24. Qa3 {[%clk 0:00:37]} 24... Ng5 {[%clk 0:01:21.4]} 25. Nd4
{[%clk 0:00:28.1]} 25... Re8 {[%clk 0:01:11.1]} 26. Nb5 {[%clk 0:00:16.9]} 26...
h5 {[%clk 0:01:09.3]} 27. d6 {[%clk 0:00:15.8]} 27... Ra6 {[%clk 0:00:58]} 28.
Bxb7 {[%clk 0:00:16]} 28... Rb6 {[%clk 0:00:59]} 29. Bg2 {[%clk 0:00:16.6]}
29... h4 {[%clk 0:00:49.4]} 30. gxh4 {[%clk 0:00:16.5]} 30... Ne6 {[%clk
0:00:50.6]} 31. Qxa5 {[%clk 0:00:14.9]} 31... Rh8 {[%clk 0:00:49.3]} 32. Nc7
{[%clk 0:00:11.1]} 32... Rxd6 {[%clk 0:00:47.6]} 33. Nxe6+ {[%clk 0:00:09.2]}
33... Rxe6 {[%clk 0:00:48.3]} 34. Qxd8 {[%clk 0:00:07.4]} 34... Rxd8 {[%clk
0:00:49.4]} 35. Bd5 {[%clk 0:00:08.2]} 35... Ra6 {[%clk 0:00:48.1]} 36. Bxf7
{[%clk 0:00:08]} 36... Rxa2+ {[%clk 0:00:49]} 37. Kh1 {[%clk 0:00:08]} 37...
Rdd2 {[%clk 0:00:46.7]} 38. Bd5 {[%clk 0:00:07.7]} 38... Rh2+ {[%clk 0:00:41]}
39. Kg1 {[%clk 0:00:08.7]} 39... Rxh3 {[%clk 0:00:42.5]} 40. Rf2 {[%clk
0:00:08.4]} 40... Ng4 {[%clk 0:00:41.3]} 41. Rxa2 {[%clk 0:00:08.7]} 1-0

[Event "*** Titled Tuesday Blitz"]
[Site "Chess.com"]
[Date "2018.11.06"]
[Round "1"]
[White "Zhuu96"]
[Black "GMMelik"]
[Result "1-0"]
[WhiteElo "2872"]
[BlackElo "2436"]
[TimeControl "180+2"]
[EndTime "13:08:14 PST"]
[Termination "Zhuu96 won by resignation"]

1. d4 {[%clk 0:02:59.4]} 1... d5 {[%clk 0:03:00]} 2. Nf3 {[%clk 0:03:00.2]} 2...
Nf6 {[%clk 0:03:00.2]} 3. c4 {[%clk 0:03:00.9]} 3... c6 {[%clk 0:03:00.4]} 4.
Nc3 {[%clk 0:03:01.5]} 4... dxc4 {[%clk 0:03:01.3]} 5. e3 {[%clk 0:03:01.9]}
5... b5 {[%clk 0:03:01.6]} 6. a4 {[%clk 0:03:03.2]} 6... b4 {[%clk 0:03:02.8]}
7. Ne2 {[%clk 0:03:04.2]} 7... a5 {[%clk 0:03:02.8]} 8. Ng3 {[%clk 0:03:02.8]}
8... Ba6 {[%clk 0:03:03.3]} 9. Ne5 {[%clk 0:03:02.2]} 9... e6 {[%clk 0:03:01.3]}
10. Be2 {[%clk 0:02:55.7]} 10... Nbd7 {[%clk 0:02:47.2]} 11. Nxc4 {[%clk
0:02:55.8]} 11... Be7 {[%clk 0:02:38.5]} 12. O-O {[%clk 0:02:55.3]} 12... O-O
{[%clk 0:02:39.5]} 13. Qc2 {[%clk 0:02:51.5]} 13... c5 {[%clk 0:02:38.3]} 14. b3
{[%clk 0:02:45.5]} 14... cxd4 {[%clk 0:02:37.6]} 15. exd4 {[%clk 0:02:45.7]}
15... Rc8 {[%clk 0:02:20]} 16. Bb2 {[%clk 0:02:44]} 16... Nb6 {[%clk 0:02:20.9]}
17. Rfd1 {[%clk 0:02:39]} 17... Nbd5 {[%clk 0:02:20]} 18. Rac1 {[%clk
0:02:37.6]} 18... Nd7 {[%clk 0:01:57.7]} 19. Ne4 {[%clk 0:02:36.9]} 19... f5
{[%clk 0:01:48.9]} 20. Ned2 {[%clk 0:02:30]} 20... Bg5 {[%clk 0:01:44]} 21. Bf3
{[%clk 0:02:29.8]} 21... N7b6 {[%clk 0:01:42.6]} 22. Re1 {[%clk 0:02:29.6]}
22... Bxd2 {[%clk 0:01:30.2]} 23. Qxd2 {[%clk 0:02:30.3]} 23... Bxc4 {[%clk
0:01:31.4]} 24. bxc4 {[%clk 0:02:31]} 24... Nxc4 {[%clk 0:01:33.3]} 25. Qe2
{[%clk 0:02:32.3]} 25... Nxb2 {[%clk 0:01:30.8]} 26. Qxe6+ {[%clk 0:02:31.3]}
26... Kh8 {[%clk 0:01:31.5]} 27. Rxc8 {[%clk 0:02:27.8]} 27... Qxc8 {[%clk
0:01:30.7]} 28. Qxd5 {[%clk 0:02:28.9]} 28... Nd3 {[%clk 0:01:26.7]} 29. Rf1
{[%clk 0:02:26.2]} 29... Qd8 {[%clk 0:01:16.4]} 30. Qc4 {[%clk 0:02:22.4]} 30...
Nb2 {[%clk 0:01:04.4]} 31. Qc2 {[%clk 0:02:21.2]} 31... Qxd4 {[%clk 0:01:04.4]}
32. Rb1 {[%clk 0:02:20.9]} 32... Nd3 {[%clk 0:00:54.9]} 33. h3 {[%clk
0:02:12.6]} 33... Ne5 {[%clk 0:00:52]} 34. Be2 {[%clk 0:02:11.9]} 34... Qc3
{[%clk 0:00:43.2]} 35. Qd1 {[%clk 0:02:11.7]} 35... b3 {[%clk 0:00:28.8]} 36.
Rxb3 {[%clk 0:02:11.9]} 36... Qc7 {[%clk 0:00:27]} 37. Rb5 {[%clk 0:02:10.7]}
37... Ng6 {[%clk 0:00:21.5]} 38. Bd3 {[%clk 0:02:08.9]} 38... Nf4 {[%clk
0:00:21.1]} 39. Bxf5 {[%clk 0:02:05.3]} 39... Rd8 {[%clk 0:00:21.7]} 40. Qf3
{[%clk 0:01:54.9]} 40... g6 {[%clk 0:00:22.2]} 41. Bb1 {[%clk 0:01:48.9]} 41...
Qc1+ {[%clk 0:00:20.8]} 42. Kh2 {[%clk 0:01:49.8]} 42... Qc7 {[%clk 0:00:21.9]}
43. Rb7 {[%clk 0:01:49.4]} 43... Qe5 {[%clk 0:00:21.7]} 44. Qe4 {[%clk
0:01:45.9]} 44... Qxe4 {[%clk 0:00:21.4]} 45. Bxe4 {[%clk 0:01:46.4]} 45... Rd2
{[%clk 0:00:23.3]} 46. Kg3 {[%clk 0:01:45.2]} 46... Nh5+ {[%clk 0:00:23.8]} 47.
Kf3 {[%clk 0:01:45.6]} 47... Ra2 {[%clk 0:00:24.3]} 48. Bc6 {[%clk 0:01:35.1]}
48... Ra3+ {[%clk 0:00:25.4]} 49. Ke4 {[%clk 0:01:35.3]} 49... Ra2 {[%clk
0:00:25.5]} 50. Rf7 {[%clk 0:01:32.8]} 50... Kg8 {[%clk 0:00:23.8]} 51. Bd5
{[%clk 0:01:26.9]} 51... Rxa4+ {[%clk 0:00:24.3]} 52. Ke5 {[%clk 0:01:28.3]}
52... Kh8 {[%clk 0:00:24]} 53. g4 {[%clk 0:01:28.2]} 1-0

[Event "*** Titled Tuesday Blitz"]
[Site "Chess.com"]
[Date "2018.11.06"]
[Round "1"]
[White "GhostOfGreenval"]
[Black "JosefineHeinemann"]
[Result "1/2-1/2"]
[WhiteElo "2703"]
[BlackElo "2354"]
[TimeControl "180+2"]
[EndTime "13:08:15 PST"]
[Termination "Game drawn by repetition"]

1. d4 {[%clk 0:03:01.9]} 1... Nf6 {[%clk 0:02:59.9]} 2. c4 {[%clk 0:03:03.1]}
2... g6 {[%clk 0:03:01.2]} 3. Nc3 {[%clk 0:03:01.8]} 3... d5 {[%clk 0:03:02.3]}
4. cxd5 {[%clk 0:03:00.9]} 4... Nxd5 {[%clk 0:03:04.2]} 5. Na4 {[%clk
0:03:02.6]} 5... Bg7 {[%clk 0:03:03.7]} 6. Nf3 {[%clk 0:03:04.2]} 6... O-O
{[%clk 0:03:03.7]} 7. e4 {[%clk 0:02:55.9]} 7... Nb6 {[%clk 0:03:04.6]} 8. Be3
{[%clk 0:02:56.5]} 8... Nxa4 {[%clk 0:03:02.8]} 9. Qxa4 {[%clk 0:02:58.4]} 9...
c5 {[%clk 0:03:04.1]} 10. Be2 {[%clk 0:02:55.5]} 10... cxd4 {[%clk 0:03:04.1]}
11. Nxd4 {[%clk 0:02:54.6]} 11... Bd7 {[%clk 0:03:01.9]} 12. Qb3 {[%clk
0:02:54.5]} 12... Nc6 {[%clk 0:03:01.4]} 13. Nf3 {[%clk 0:02:45.2]} 13... Qa5+
{[%clk 0:03:00]} 14. Bd2 {[%clk 0:02:45.6]} 14... Qc7 {[%clk 0:02:53.2]} 15. Rc1
{[%clk 0:02:43]} 15... Rac8 {[%clk 0:02:54]} 16. O-O {[%clk 0:02:43.6]} 16...
Rfd8 {[%clk 0:02:54.2]} 17. Ng5 {[%clk 0:02:37.7]} 17... e6 {[%clk 0:02:41.9]}
18. Be3 {[%clk 0:02:38.8]} 18... Qb8 {[%clk 0:02:41.6]} 19. Rfd1 {[%clk
0:02:30.3]} 19... Be8 {[%clk 0:02:39.5]} 20. Qa3 {[%clk 0:02:12.5]} 20... Qe5
{[%clk 0:02:28.9]} 21. Rxd8 {[%clk 0:01:41.1]} 21... Rxd8 {[%clk 0:02:30.8]} 22.
f4 {[%clk 0:01:02.6]} 22... Qxb2 {[%clk 0:02:25.4]} 23. Qxb2 {[%clk 0:01:04.5]}
23... Bxb2 {[%clk 0:02:26.1]} 24. Rb1 {[%clk 0:01:06.1]} 24... Bd4 {[%clk
0:02:27.5]} 25. Kf2 {[%clk 0:01:00.9]} 25... b6 {[%clk 0:02:28.2]} 26. Nf3
{[%clk 0:00:30.6]} 26... Bxe3+ {[%clk 0:02:28.4]} 27. Kxe3 {[%clk 0:00:32.5]}
27... Na5 {[%clk 0:02:23]} 28. Rc1 {[%clk 0:00:29.7]} 28... f6 {[%clk
0:02:12.9]} 29. Rc7 {[%clk 0:00:29.4]} 29... Rd7 {[%clk 0:02:13.7]} 30. Rc8
{[%clk 0:00:29.8]} 30... Kf7 {[%clk 0:02:14.5]} 31. Nd4 {[%clk 0:00:19.1]} 31...
Re7 {[%clk 0:01:55.1]} 32. e5 {[%clk 0:00:16.2]} 32... fxe5 {[%clk 0:01:52.9]}
33. fxe5 {[%clk 0:00:18.1]} 33... Ba4 {[%clk 0:01:40.2]} 34. Bg4 {[%clk
0:00:12.5]} 34... h5 {[%clk 0:01:31]} 35. Bh3 {[%clk 0:00:13.4]} 35... Bd1
{[%clk 0:01:04.1]} 36. Rc1 {[%clk 0:00:09.6]} 36... Bg4 {[%clk 0:01:04.7]} 37.
Bxg4 {[%clk 0:00:11.2]} 37... hxg4 {[%clk 0:01:06.6]} 38. Kf4 {[%clk 0:00:11.9]}
38... Rd7 {[%clk 0:01:07.4]} 39. Nb5 {[%clk 0:00:12.1]} 39... Nb7 {[%clk
0:00:58.4]} 40. Kxg4 {[%clk 0:00:11.6]} 40... Nc5 {[%clk 0:00:53.7]} 41. Nd6+
{[%clk 0:00:12.2]} 41... Kg7 {[%clk 0:00:54.9]} 42. Ne8+ {[%clk 0:00:12]} 42...
Kf7 {[%clk 0:00:55.1]} 43. Nd6+ {[%clk 0:00:13.2]} 43... Kg7 {[%clk 0:00:55.4]}
44. Ne8+ {[%clk 0:00:12]} 44... Kf7 {[%clk 0:00:56.5]} 45. Nd6+ {[%clk
0:00:13.4]} 1/2-1/2

[Event "*** Titled Tuesday Blitz"]
[Site "Chess.com"]
[Date "2018.11.06"]
[Round "1"]
[White "Phelathegreat"]
[Black "VladDobrov"]
[Result "0-1"]
[WhiteElo "2354"]
[BlackElo "2718"]
[TimeControl "180+2"]
[EndTime "13:08:18 PST"]
[Termination "VladDobrov won by resignation"]

1. d4 {[%clk 0:03:01.9]} 1... Nf6 {[%clk 0:03:00.1]} 2. c4 {[%clk 0:03:01.6]}
2... e6 {[%clk 0:03:01.4]} 3. Nf3 {[%clk 0:02:59.5]} 3... b6 {[%clk 0:03:02.3]}
4. g3 {[%clk 0:02:59.5]} 4... Bb7 {[%clk 0:03:02.3]} 5. Bg2 {[%clk 0:03:00.9]}
5... g6 {[%clk 0:03:03.5]} 6. Nc3 {[%clk 0:03:00.2]} 6... Bg7 {[%clk 0:03:04.8]}
7. O-O {[%clk 0:03:02.1]} 7... O-O {[%clk 0:03:05.7]} 8. Bg5 {[%clk 0:03:02.8]}
8... h6 {[%clk 0:03:06.1]} 9. Bf4 {[%clk 0:02:58.4]} 9... d6 {[%clk 0:02:58.1]}
10. Qd2 {[%clk 0:02:51]} 10... g5 {[%clk 0:02:56.8]} 11. Be3 {[%clk 0:02:51.5]}
11... Ne4 {[%clk 0:02:55.6]} 12. Nxe4 {[%clk 0:02:51.9]} 12... Bxe4 {[%clk
0:02:57.5]} 13. Rac1 {[%clk 0:02:51.1]} 13... Nd7 {[%clk 0:02:57.2]} 14. Rfd1
{[%clk 0:02:52]} 14... Qe7 {[%clk 0:02:55]} 15. c5 {[%clk 0:02:49.3]} 15... Nf6
{[%clk 0:02:49.2]} 16. cxd6 {[%clk 0:02:46.8]} 16... cxd6 {[%clk 0:02:51.1]} 17.
Qb4 {[%clk 0:02:47.3]} 17... Nd5 {[%clk 0:02:50.8]} 18. Qa3 {[%clk 0:02:47.2]}
18... Nxe3 {[%clk 0:02:45.2]} 19. Qxe3 {[%clk 0:02:49.1]} 19... Bd5 {[%clk
0:02:43.8]} 20. Qa3 {[%clk 0:02:49.9]} 20... Rac8 {[%clk 0:02:41.1]} 21. e3
{[%clk 0:02:43.7]} 21... Be4 {[%clk 0:02:13.3]} 22. Qa6 {[%clk 0:02:31.4]} 22...
Rc7 {[%clk 0:02:04.5]} 23. Rc4 {[%clk 0:02:17]} 23... Bb7 {[%clk 0:01:56]} 24.
Qa4 {[%clk 0:02:10.9]} 24... Rxc4 {[%clk 0:01:56.5]} 25. Qxc4 {[%clk 0:02:12.8]}
25... Rc8 {[%clk 0:01:57.5]} 26. Qa4 {[%clk 0:02:14.2]} 26... Qc7 {[%clk
0:01:54.3]} 27. Nd2 {[%clk 0:02:05.5]} 27... Bxg2 {[%clk 0:01:18.9]} 28. Kxg2
{[%clk 0:02:07.4]} 28... Qb7+ {[%clk 0:01:19.6]} 29. Kg1 {[%clk 0:02:01.8]}
29... d5 {[%clk 0:01:06.6]} 30. Kf1 {[%clk 0:02:00.8]} 30... g4 {[%clk
0:01:04.9]} 31. Ke2 {[%clk 0:01:55.9]} 31... b5 {[%clk 0:00:59.3]} 32. Qb3
{[%clk 0:01:53.4]} 32... a5 {[%clk 0:00:59.3]} 33. Qd3 {[%clk 0:01:54.3]} 33...
a4 {[%clk 0:00:57.9]} 34. Nb1 {[%clk 0:01:55.1]} 34... h5 {[%clk 0:00:55.6]} 35.
Nc3 {[%clk 0:01:55.3]} 35... Rb8 {[%clk 0:00:44.8]} 36. Rc1 {[%clk 0:01:56.4]}
36... Bf8 {[%clk 0:00:44.9]} 37. a3 {[%clk 0:01:50.7]} 37... Bd6 {[%clk
0:00:45.7]} 38. e4 {[%clk 0:01:50.8]} 38... dxe4 {[%clk 0:00:46.8]} 39. Nxe4
{[%clk 0:01:52.7]} 39... Be7 {[%clk 0:00:48.1]} 40. f3 {[%clk 0:01:51.2]} 40...
Rd8 {[%clk 0:00:45.3]} 41. fxg4 {[%clk 0:01:49.5]} 41... hxg4 {[%clk 0:00:47.2]}
42. Kf2 {[%clk 0:01:46.3]} 42... Qd5 {[%clk 0:00:46.2]} 43. Rd1 {[%clk
0:01:45.6]} 43... Qf5+ {[%clk 0:00:40.7]} 44. Kg2 {[%clk 0:01:43.4]} 44... Qd5
{[%clk 0:00:41.6]} 45. Kf2 {[%clk 0:01:43.8]} 45... Qf5+ {[%clk 0:00:35.9]} 46.
Kg2 {[%clk 0:01:44.7]} 46... Qg6 {[%clk 0:00:36.9]} 47. Re1 {[%clk 0:01:37.9]}
47... Qh5 {[%clk 0:00:33.3]} 48. Nf2 {[%clk 0:01:35.9]} 48... Qd5+ {[%clk
0:00:33.5]} 49. Re4 {[%clk 0:01:33.5]} 49... f5 {[%clk 0:00:34.2]} 50. Qe2
{[%clk 0:01:31.8]} 50... fxe4 {[%clk 0:00:35]} 51. Qxg4+ {[%clk 0:01:32.7]}
51... Kf7 {[%clk 0:00:36.5]} 52. Qf4+ {[%clk 0:01:29.9]} 52... Qf5 {[%clk
0:00:37]} 53. Qxe4 {[%clk 0:01:23.5]} 53... Qxe4+ {[%clk 0:00:37.7]} 54. Nxe4
{[%clk 0:01:25.4]} 54... Rxd4 {[%clk 0:00:39]} 55. Kf3 {[%clk 0:01:24.5]} 55...
Rd3+ {[%clk 0:00:40.2]} 56. Ke2 {[%clk 0:01:25.6]} 56... Rb3 {[%clk 0:00:42.1]}
0-1

[Event "*** Titled Tuesday Blitz"]
[Site "Chess.com"]
[Date "2018.11.06"]
[Round "1"]
[White "NateSolon"]
[Black "sandager"]
[Result "1-0"]
[WhiteElo "2515"]
[BlackElo "2114"]
[TimeControl "180+2"]
[EndTime "13:08:18 PST"]
[Termination "NateSolon won by resignation"]

1. e4 {[%clk 0:02:07]} 1... e5 {[%clk 0:03:00.3]} 2. Nf3 {[%clk 0:02:06.5]} 2...
Nc6 {[%clk 0:03:00.9]} 3. Bc4 {[%clk 0:02:07.2]} 3... Bc5 {[%clk 0:03:00.3]} 4.
c3 {[%clk 0:02:07.4]} 4... Nf6 {[%clk 0:03:00]} 5. d3 {[%clk 0:02:07.4]} 5... d6
{[%clk 0:02:59.1]} 6. O-O {[%clk 0:02:06]} 6... h6 {[%clk 0:02:59.4]} 7. a4
{[%clk 0:02:04.9]} 7... a6 {[%clk 0:02:53.6]} 8. Re1 {[%clk 0:02:04.4]} 8... O-O
{[%clk 0:02:52.9]} 9. h3 {[%clk 0:01:59.1]} 9... Be6 {[%clk 0:02:51.8]} 10. Bxe6
{[%clk 0:01:56.2]} 10... fxe6 {[%clk 0:02:52.4]} 11. d4 {[%clk 0:01:52.9]} 11...
exd4 {[%clk 0:02:51.6]} 12. cxd4 {[%clk 0:01:53.8]} 12... Bb4 {[%clk 0:02:52.1]}
13. Bd2 {[%clk 0:01:49.8]} 13... Bxd2 {[%clk 0:02:51]} 14. Nbxd2 {[%clk
0:01:49.2]} 14... Kh7 {[%clk 0:02:23.1]} 15. Qb3 {[%clk 0:01:48.7]} 15... Qe8
{[%clk 0:02:21.5]} 16. Rac1 {[%clk 0:01:46.5]} 16... Rb8 {[%clk 0:02:07.7]} 17.
e5 {[%clk 0:01:45.7]} 17... Nd5 {[%clk 0:02:03.2]} 18. exd6 {[%clk 0:01:41.4]}
18... cxd6 {[%clk 0:02:03.2]} 19. Ne4 {[%clk 0:01:35.9]} 19... Qg6 {[%clk
0:02:00.7]} 20. Nxd6 {[%clk 0:00:47.6]} 20... Nf4 {[%clk 0:01:54.4]} 21. Nh4
{[%clk 0:00:48.3]} 21... Qh5 {[%clk 0:01:42.9]} 22. Qg3 {[%clk 0:00:39.5]} 22...
g5 {[%clk 0:01:34.3]} 23. Nf3 {[%clk 0:00:36.3]} 23... Nxh3+ {[%clk 0:01:30.6]}
24. Qxh3 {[%clk 0:00:26.3]} 24... Qxh3 {[%clk 0:01:29.6]} 25. gxh3 {[%clk
0:00:28.2]} 25... Rxf3 {[%clk 0:01:30]} 26. Rxe6 {[%clk 0:00:25.5]} 26... Nxd4
{[%clk 0:01:30.4]} 27. Re7+ {[%clk 0:00:26.9]} 27... Kg6 {[%clk 0:01:30.4]} 28.
Kg2 {[%clk 0:00:28.3]} 28... Rb3 {[%clk 0:01:27.2]} 29. Rcc7 {[%clk 0:00:25.3]}
29... Rg8 {[%clk 0:01:24.1]} 30. Rxb7 {[%clk 0:00:25.1]} 30... Rxb7 {[%clk
0:01:24.2]} 31. Rxb7 {[%clk 0:00:27]} 31... h5 {[%clk 0:01:22.7]} 32. Rb6 {[%clk
0:00:27.8]} 32... h4 {[%clk 0:01:09.8]} 33. Nb5+ {[%clk 0:00:27.5]} 33... Kf5
{[%clk 0:01:09.9]} 34. Nxd4+ {[%clk 0:00:28.4]} 34... Ke4 {[%clk 0:01:11.1]} 35.
Nf3 {[%clk 0:00:27]} 35... g4 {[%clk 0:01:10.7]} 36. Nxh4 {[%clk 0:00:27]} 36...
gxh3+ {[%clk 0:01:11]} 37. Kxh3 {[%clk 0:00:28]} 37... a5 {[%clk 0:01:10.1]} 38.
Rb5 {[%clk 0:00:27.9]} 38... Rf8 {[%clk 0:01:10.7]} 39. f3+ {[%clk 0:00:27.9]}
39... Kd4 {[%clk 0:01:09.1]} 40. Rxa5 {[%clk 0:00:28.1]} 40... Kc4 {[%clk
0:01:09.1]} 41. Rf5 {[%clk 0:00:26.7]} 41... Rh8 {[%clk 0:01:06.9]} 42. a5
{[%clk 0:00:26.5]} 42... Kb3 {[%clk 0:01:07.3]} 43. a6 {[%clk 0:00:24.8]} 43...
Kxb2 {[%clk 0:01:05.2]} 44. a7 {[%clk 0:00:25.7]} 44... Ra8 {[%clk 0:01:04.5]}
45. Ra5 {[%clk 0:00:24.5]} 45... Kb3 {[%clk 0:01:05.6]} 46. f4 {[%clk
0:00:25.5]} 46... Kb4 {[%clk 0:01:06.7]} 47. Ra1 {[%clk 0:00:26.3]} 47... Kb5
{[%clk 0:01:07]} 48. f5 {[%clk 0:00:27.3]} 48... Kc6 {[%clk 0:01:07.6]} 49. Kg4
{[%clk 0:00:28.3]} 49... Kb7 {[%clk 0:01:08.6]} 50. f6 {[%clk 0:00:29.2]} 50...
Rf8 {[%clk 0:01:09.5]} 51. a8=Q+ {[%clk 0:00:28.9]} 51... Rxa8 {[%clk
0:01:09.2]} 52. Rxa8 {[%clk 0:00:30.8]} 1-0